fUSD/lending_fUSD_20260311
["ID","MTS","AMOUNT","RATE_DAILY","PERIOD"]
[408195074,1773208232780,-500.0,0.00017773,2]
[408195075,1773208232789,-500.0,0.00017773,2]
[408195076,1773208232799,-500.0,0.00017773,2]
[408195077,1773208232808,-219.45673384,0.00017773,2]
[408195078,1773208232818,-500.0,0.00017773,2]
[408195079,1773208232827,-1836.39274162,0.00017783,2]
[408195080,1773208232836,-553.0,0.00017821,2]
[408195081,1773208232846,-1027.0,0.00017842,2]
[408195082,1773208232855,-200.0,0.00017871,2]
[408195083,1773208232864,-500.0,0.00018321,2]
[408195084,1773208232873,-150.0,0.00018333,2]
[408195085,1773208232882,-410.29648094,0.00018338,2]
[408195086,1773208232891,-172.0,0.00018379,2]
[408195087,1773208232900,-677.0,0.00018409,2]
[408195088,1773208232910,-1423.0,0.00018442,2]
[408195089,1773208232919,-842.71,0.00018535,2]
[408195090,1773208232927,-168.350623,0.0001862,7]
[408195091,1773208232936,-823.0,0.00018644,2]
[408195092,1773208232946,-500.0,0.00018799,2]
[408195093,1773208232956,-500.0,0.00018799,2]
[408195094,1773208232966,-500.0,0.00018799,2]
[408195095,1773208232977,-366.38,0.00018836,2]
[408195096,1773208232987,-284.61,0.00019106,2]
[408195097,1773208232996,-1749.95122857,0.000192,2]
[408195100,1773208238443,-0.63395664,0.000192,2]
[408195114,1773208240452,-249.41481479,0.000192,2]
[408195115,1773208240471,-150.0,0.000192,2]
[408195116,1773208240482,-150.0,0.00019352,2]
[408195117,1773208240491,-250.0,0.00019352,2]
[408195118,1773208240502,-250.0,0.00019352,2]
[408195119,1773208240511,-200.0,0.00019407,2]
[408195120,1773208240521,-426.19500043,0.00019681,2]
[408195121,1773208240530,-905.58,0.00019827,2]
[408195122,1773208240539,-200.0,0.00019863,2]
[408195123,1773208240549,-366.38,0.00019883,2]
[408195124,1773208240558,-200.0,0.00019895,2]
[408195125,1773208240568,-250.0,0.00019895,2]
[408195126,1773208240577,-165.64957032,0.000199,2]
[408195127,1773208240587,-5000.0,0.000199,2]
[408195128,1773208240596,-2000.0,0.000199,2]
[408195129,1773208240605,-3995.87481013,0.000199,2]
[408195130,1773208240614,-501.93034224,0.00019973,2]
[408195131,1773208240624,-501.13386754,0.00019973,2]
[408195132,1773208240633,-614.83539045,0.0001999,2]
[408195133,1773208240642,-16291.7110156,0.00019995,2]
[408195134,1773208240651,-151.0,0.00019997,2]
[408195135,1773208240661,-151.0,0.00019997,2]
[408195136,1773208240671,-388.74168792,0.00019998,2]
[408195137,1773208240888,-122.64621392,0.00019998,2]
[408195138,1773208240898,-513.03817385,0.00019998,2]
[408195139,1773208240908,-500.0,0.00019998,2]
[408195140,1773208240918,-500.0,0.00019998,2]
[408195141,1773208240928,-500.0,0.00019998,2]
[408195142,1773208240938,-1832.2107832,0.00019999,2]
[408195143,1773208240948,-500.0,0.00019999,2]
[408195144,1773208240956,-500.0,0.00019999,2]
[408195145,1773208240965,-981.54307946,0.00019999,2]
[408195146,1773208240974,-261.24779891,0.00019999,2]
[408195147,1773208240983,-183.07713092,0.00019999,2]
[408195148,1773208240992,-500.0,0.00019999,2]
[408195149,1773208241002,-210.19182398,0.00019999,2]
[408195150,1773208241014,-1350658.61264496,0.0002,2]
[408195151,1773208241028,-1296.01540972,0.0002,2]
[408195152,1773208241039,-709.92966755,0.0002,2]
[408195169,1773208246499,-204.44151496,0.00019769,2]
[408195170,1773208246509,-173545.55848505,0.0002,2]
[408195173,1773208250145,201.2,0.00014188,2]
[408195174,1773208266440,161.0,0.00014188,2]
[408195175,1773208269551,161.0,0.00014188,2]
[408195176,1773208271593,500.82489326,0.00014188,2]
[408195177,1773208280405,500.0,0.00014188,2]
[408195178,1773208302751,500.0,0.00014188,2]
[408195179,1773208307179,514.90229542,0.00014188,2]
[408195180,1773208318044,500.0,0.00014188,2]
[408195181,1773208318798,500.0,0.00014188,2]
[408195182,1773208319113,500.0,0.00014188,2]
[408195183,1773208327329,161.0,0.00014188,2]
[408195184,1773208330755,161.0,0.00014188,2]
[408195186,1773208349339,596.29210205,9.188e-05,2]
[408195187,1773208355286,500.0,0.00014188,2]
[408195188,1773208368602,500.0,0.00014188,2]
[408195189,1773208391433,162.0,0.00014188,2]
[408195190,1773208394262,161.0,0.00014188,2]
[408195191,1773208527759,-162.0,0.00014188,2]
[408195192,1773208527781,-160.0,0.00014188,2]
[408195193,1773208530821,-500.0,0.00015,30]
[408195194,1773208530853,-500.0,0.00015,30]
[408195195,1773208530882,-500.0,0.00015,30]
[408195196,1773208530911,-500.0,0.00015,30]
[408195197,1773208530941,-500.0,0.00015,30]
[408195198,1773208530969,-919.41203317,0.00015,30]
[408195199,1773208567222,162.0,0.00015,2]
[408195200,1773208624614,186.57,9.344e-05,2]
[408195201,1773208624813,186.57,9.836e-05,2]
[408195202,1773208625092,186.57,0.00010328,2]
[408195203,1773208625309,186.57,0.00010819,2]
[408195204,1773208625554,186.57,0.00011311,2]
[408195205,1773208625748,186.57,0.00011803,2]
[408195206,1773208625945,186.57,0.00012295,2]
[408195207,1773208626158,186.57,0.00012786,2]
[408195208,1773208626503,186.57,0.00013278,2]
[408195209,1773208626700,-162.0,0.00015,2]
[408195210,1773208626816,186.57,0.0001377,2]
[408195211,1773208627218,186.57,0.00014262,2]
[408195212,1773208627416,186.57,0.00014754,2]
[408195213,1773208630030,500.0,0.00014188,2]
[408195214,1773208636134,500.0,0.00015,30]
[408195215,1773208636669,601.01344403,0.00015,30]
[408195216,1773208637093,500.0,0.00015,30]
[408195217,1773208637602,500.0,0.0001,2]
[408195218,1773208639717,500.0,0.00014188,2]
[408195219,1773208642162,500.0,0.00015,30]
[408195220,1773208644482,500.0,0.00015,30]
[408195221,1773208644957,500.0,0.00015,30]
[408195222,1773208645445,500.0,0.0001,2]
[408195223,1773208645975,500.0,0.0001,2]
[408195224,1773208647440,500.0,0.00015,30]
[408195225,1773208648511,116.3,0.00015,30]
[408195226,1773208650919,-383.7,0.00015,30]
[408195227,1773208650972,-650.75817212,0.00015,30]
[408195228,1773208653243,508.76593059,0.00015,30]
[408195229,1773208684885,162.0,0.00015,2]
[408195230,1773208696145,2260.32772517,0.0001429,7]
[408195231,1773208696165,7701.0,0.0001429,7]
[408195232,1773208699238,-717.37634743,0.0001429,7]
[408195233,1773208766608,1032.94587224,0.000108,2]
[408195234,1773208949738,217.91732032,0.00014088,2]
[408195235,1773208952122,500.0,9.089e-05,2]
[408195236,1773208953978,3249.14680744,9.5e-05,3]
[408195237,1773208954006,2180.03830083,9.5e-05,3]
[408195238,1773208954030,722.8955016,9.5e-05,3]
[408195239,1773208954061,8888.55538168,9.5e-05,3]
[408195244,1773209408546,-217.91732032,0.00014088,2]
[408195245,1773209408576,-300.30611518,0.00014113,2]
[408195246,1773209408603,-250.0,0.00014138,2]
[408195247,1773209408636,-738.0,0.00014187,2]
[408195248,1773209408663,-161.0,0.00014188,3]
[408195249,1773209408691,-163.0,0.00014188,3]
[408195250,1773209408718,-500.0,0.00014188,2]
[408195251,1773209411352,-500.0,0.00014188,2]
[408195252,1773209411382,-500.0,0.00014188,2]
[408195253,1773209411415,-500.0,0.00014188,2]
[408195254,1773209411444,-500.0,0.00014188,2]
[408195255,1773209411473,-500.0,0.00014188,2]
[408195261,1773209431501,-500.0,0.00014188,2]
[408195262,1773209431511,-250.0,0.00014493,2]
[408195263,1773209431521,-369.12164221,0.00015,2]
[408195264,1773209431530,-500.0,0.00015,30]
[408195265,1773209431539,-186.57,0.00015245,2]
[408195266,1773209431548,-500.0,0.00015497,2]
[408195268,1773209431558,-250.0,0.00015497,2]
[408195269,1773209431570,-600.0,0.00015497,2]
[408195270,1773209431579,-1504.90790637,0.00015497,2]
[408195271,1773209431589,-300.0,0.00015497,2]
[408195272,1773209431598,-9061.95255755,0.00015504,2]
[408195273,1773209431609,-173.79385884,0.00015606,2]
[408195275,1773209431618,-150.15274684,0.00015606,2]
[408195276,1773209431627,-300.0,0.00015606,2]
[408195277,1773209431637,-2001.20791963,0.00015607,2]
[408195278,1773209431646,-500.0,0.00015607,2]
[408195279,1773209431655,-188.70030793,0.00015607,2]
[408195280,1773209431664,-193.0,0.00015607,2]
[408195281,1773209431674,-186.57,0.00015737,2]
[408195282,1773209431683,-500.0,0.00015737,2]
[408195283,1773209431696,-186.57,0.00016229,2]
[408195285,1773209431705,-636.0,0.00016318,2]
[408195286,1773209431714,-530.0,0.00016341,2]
[408195287,1773209431723,-447.0,0.00016469,2]
[408195288,1773209431734,-186.57,0.00016721,2]
[408195289,1773209431744,-500.0,0.00016767,2]
[408195290,1773209431753,-501.68321404,0.000169,2]
[408195291,1773209431763,-500.59506697,0.000169,2]
[408195292,1773209431773,-500.0,0.000169,2]
[408195293,1773209431782,-500.0,0.000169,2]
[408195294,1773209431792,-503.0,0.00017,2]
[408195295,1773209431801,-4151.44436755,0.00017109,2]
[408195296,1773209431811,-186.57,0.00017212,2]
[408195297,1773209431820,-500.0,0.00017448,2]
[408195298,1773209431830,-2760.78190595,0.0001758,2]
[408195299,1773209431839,-186.57,0.00017704,2]
[408195300,1773209431848,-500.0,0.00017727,2]
[408195301,1773209431858,-500.0,0.00017727,2]
[408195302,1773209431868,-500.0,0.00017727,2]
[408195303,1773209431877,-500.0,0.00017727,2]
[408195304,1773209431886,-500.0,0.00017727,2]
[408195305,1773209431899,-500.0,0.00017727,2]
[408195306,1773209431908,-2000.0,0.00017746,2]
[408195307,1773209431917,-722.3,0.00017857,2]
[408195308,1773209431927,-2000.0,0.00017868,2]
[408195309,1773209431936,-151.0,0.00017869,2]
[408195310,1773209431945,-151.0,0.00017869,2]
[408195311,1773209431955,-151.0,0.00017869,2]
[408195312,1773209431964,-151.0,0.00017869,2]
[408195313,1773209431973,-500.0,0.00017869,2]
[408195314,1773209431983,-202.38527942,0.00017869,2]
[408195315,1773209431993,-151.0,0.00017869,2]
[408195316,1773209432002,-500.0,0.00017869,2]
[408195317,1773209432011,-151.0,0.00017869,2]
[408195318,1773209432020,-500.0,0.00017869,2]
[408195319,1773209432029,-151.0,0.00017869,2]
[408195320,1773209432039,-519.676586,0.00017869,2]
[408195321,1773209432048,-151.0,0.00017869,2]
[408195322,1773209432057,-151.0,0.00017869,2]
[408195323,1773209432067,-151.0,0.00017869,2]
[408195324,1773209432077,-151.0,0.00017869,2]
[408195325,1773209432086,-151.0,0.00017869,2]
[408195326,1773209432098,-177.95839125,0.00017869,2]
[408195327,1773209432107,-151.0,0.00017869,2]
[408195328,1773209432116,-151.0,0.00017869,2]
[408195329,1773209432124,-500.0,0.00017869,2]
[408195330,1773209432134,-500.0,0.00017869,2]
[408195331,1773209432143,-500.0,0.00017869,2]
[408195332,1773209432152,-523.57937133,0.00017869,2]
[408195333,1773209432161,-11376.26787748,0.0001788,2]
[408195334,1773209432170,-1106.64,0.00017922,2]
[408195335,1773209432179,-232.75,0.00017943,2]
[408195336,1773209432189,-22943.93192769,0.00018,7]
[408195337,1773209432200,-2173.95793046,0.00018103,2]
[408195338,1773209432209,-186.57,0.00018196,2]
[408195339,1773209432218,-1106.64,0.0001837,2]
[408195340,1773209432227,-161.0,0.000184,2]
[408195341,1773209432236,-250.13,0.00018497,2]
[408195342,1773209432245,-166.66,0.00018676,2]
[408195343,1773209432254,-186.57,0.00018688,2]
[408195344,1773209432264,-200.0,0.00018778,2]
[408195345,1773209432273,-1106.64,0.00018818,2]
[408195346,1773209432282,-500.0,0.00018841,2]
[408195347,1773209432294,-50940.81815892,0.00019028,2]
[408195348,1773209432306,-4447.09558645,0.00019028,2]
[408195349,1773209432317,-16084.08586099,0.00019028,2]
[408195350,1773209432328,-2303.22682107,0.00019028,2]
[408195353,1773209437544,-860.85068214,0.00019028,2]
[408195354,1773209437604,-1757.91409875,0.00019028,2]
[408195358,1773209439767,-21999.06049168,0.00019028,2]
[408195359,1773209439776,-184.56082111,0.00019028,2]
[408195360,1773209439786,-166.66,0.0001907,2]
[408195361,1773209439795,-3240.0,0.00019105,2]
[408195362,1773209439804,-4633.89,0.00019128,2]
[408195363,1773209439814,-1000.0,0.000192,2]
[408195364,1773209439824,-1106.64,0.00019266,2]
[408195365,1773209439833,-161.0,0.00019304,3]
[408195366,1773209439842,-166.66,0.00019463,2]
[408195367,1773209439851,-350.0,0.00019587,2]
[408195368,1773209439861,-533.36,0.00019617,2]
[408195369,1773209439870,-485.24,0.00019617,2]
[408195370,1773209439879,-150.0,0.00019621,2]
[408195371,1773209439888,-261.27450762,0.00019621,2]
[408195372,1773209439898,-150.0,0.00019621,2]
[408195373,1773209439907,-150.0,0.00019621,2]
[408195374,1773209439916,-237.03813108,0.00019621,2]
[408195375,1773209439926,-350.0,0.00019666,2]
[408195376,1773209439935,-202.59725118,0.00019676,2]
[408195377,1773209439944,-150.0,0.00019676,2]
[408195378,1773209439954,-150.0,0.00019676,2]
[408195379,1773209439963,-630.32202108,0.00019699,2]
[408195380,1773209439972,-1000.0,0.00019701,2]
[408195381,1773209439982,-992.98,0.00019708,2]
[408195382,1773209439991,-1106.64,0.00019714,2]
[408195383,1773209440000,-150.0,0.00019731,2]
[408195384,1773209440010,-213.19407865,0.00019731,2]
[408195385,1773209440019,-150.0,0.00019785,2]
[408195386,1773209440028,-1000.0,0.00019793,2]
[408195387,1773209440037,-196.5,0.00019797,2]
[408195388,1773209440047,-1467.5376,0.000198,2]
[408195389,1773209440056,-165.84193606,0.000198,2]
[408195390,1773209440065,-2500.0,0.000198,2]
[408195391,1773209440075,-165.84193597,0.00019811,2]
[408195392,1773209440084,-165.84193597,0.00019822,2]
[408195393,1773209440093,-200.0,0.00019829,2]
[408195395,1773209440102,-165.84193597,0.00019833,2]
[408195397,1773209440111,-150.0,0.0001984,2]
[408195398,1773209440120,-165.84193597,0.00019844,2]
[408195399,1773209440129,-1467.5376,0.0001985,2]
[408195400,1773209440138,-165.84193597,0.00019856,2]
[408195401,1773209440147,-166.66,0.00019856,2]
[408195402,1773209440156,-158.72164277,0.00019863,2]
[408195403,1773209440164,-165.84193597,0.00019867,2]
[408195404,1773209440174,-165.84193597,0.00019878,2]
[408195405,1773209440184,-165.84193597,0.00019889,2]
[408195406,1773209440193,-200.0,0.0001989,2]
[408195407,1773209440202,-533.36,0.00019891,2]
[408195408,1773209440211,-485.24,0.00019891,2]
[408195409,1773209440221,-250.0,0.00019895,2]
[408195410,1773209440230,-500.0,0.00019899,2]
[408195411,1773209440240,-500.0,0.00019899,2]
[408195412,1773209440249,-500.0,0.00019899,2]
[408195413,1773209440258,-500.0,0.00019899,2]
[408195414,1773209440267,-504.64296701,0.00019899,2]
[408195415,1773209440275,-500.0,0.00019899,2]
[408195416,1773209440284,-586.870057,0.00019899,2]
[408195417,1773209440293,-500.0,0.00019899,2]
[408195418,1773209440303,-500.0,0.00019899,2]
[408195419,1773209440314,-513.03817385,0.00019899,2]
[408195420,1773209440325,-500.0,0.00019899,2]
[408195421,1773209440335,-500.0,0.00019899,2]
[408195422,1773209440346,-500.0,0.00019899,2]
[408195423,1773209440356,-500.0,0.00019899,2]
[408195424,1773209440365,-500.0,0.00019899,2]
[408195425,1773209440374,-500.0,0.00019899,2]
[408195426,1773209440383,-500.0,0.00019899,2]
[408195427,1773209440392,-500.0,0.00019899,2]
[408195428,1773209440401,-500.0,0.00019899,2]
[408195429,1773209440410,-500.0,0.00019899,2]
[408195430,1773209440419,-500.0,0.00019899,2]
[408195431,1773209440429,-500.0,0.00019899,2]
[408195432,1773209440438,-500.0,0.00019899,2]
[408195433,1773209440447,-500.0,0.00019899,2]
[408195434,1773209440456,-500.0,0.00019899,2]
[408195435,1773209440466,-187.66707919,0.00019899,2]
[408195436,1773209440475,-500.0,0.00019899,2]
[408195437,1773209440484,-500.0,0.00019899,2]
[408195438,1773209440493,-500.0,0.00019899,2]
[408195439,1773209440504,-500.0,0.00019899,2]
[408195440,1773209440513,-500.0,0.00019899,2]
[408195441,1773209440522,-500.0,0.00019899,2]
[408195442,1773209440531,-485.32992184,0.00019899,2]
[408195443,1773209440540,-342.83648688,0.00019899,2]
[408195444,1773209440549,-462.51528708,0.00019899,2]
[408195445,1773209440559,-601.10612814,0.00019899,2]
[408195446,1773209440570,-151.78112264,0.000199,5]
[408195447,1773209440580,-7035.144,0.000199,2]
[408195448,1773209440589,-1000.0,0.000199,2]
[408195449,1773209440598,-169.11332774,0.000199,2]
[408195450,1773209440609,-1467.53759,0.000199,2]
[408195451,1773209440618,-2786.3833,0.000199,2]
[408195452,1773209440627,-165.84193597,0.000199,2]
[408195453,1773209440637,-160.61307676,0.000199,2]
[408195454,1773209440646,-476.2948449,0.000199,2]
[408195455,1773209440656,-1044.04230344,0.000199,2]
[408195456,1773209440665,-4223.96464587,0.000199,2]
[408195457,1773209440674,-3577.90070524,0.000199,2]
[408195458,1773209440683,-168.0,0.00019915,2]
[408195459,1773209440692,-150.0,0.00019918,2]
[408195460,1773209440701,-1467.5376,0.0001995,2]
[408195461,1773209440710,-150.0,0.00019962,2]
[408195462,1773209440719,-2000.0,0.00019964,2]
[408195463,1773209440728,-500.0,0.00019973,2]
[408195464,1773209440737,-1832.2107832,0.0001998,2]
[408195465,1773209440746,-3635.6553438,0.0001998,2]
[408195466,1773209440756,-1735.2039548,0.00019983,2]
[408195467,1773209440765,-409.8902603,0.0001999,2]
[408195468,1773209440774,-409.8902603,0.0001999,2]
[408195469,1773209440784,-409.8902603,0.0001999,2]
[408195470,1773209440793,-257.93,0.0001999,2]
[408195471,1773209440802,-257.93,0.0001999,2]
[408195472,1773209440811,-257.93,0.0001999,2]
[408195473,1773209440821,-257.93,0.0001999,2]
[408195474,1773209440830,-257.93,0.0001999,2]
[408195475,1773209440840,-903.4900156,0.00019995,2]
[408195476,1773209440849,-309.59178278,0.00019999,2]
[408195477,1773209440859,-310.6853941,0.00019999,2]
[408195478,1773209440868,-500.0,0.00019999,2]
[408195479,1773209440877,-605.55782896,0.00019999,2]
[408195480,1773209440886,-500.0,0.00019999,2]
[408195481,1773209440896,-500.0,0.00019999,2]
[408195482,1773209440904,-500.0,0.00019999,2]
[408195483,1773209440914,-500.0,0.00019999,2]
[408195484,1773209440923,-500.0,0.00019999,2]
[408195485,1773209440933,-500.0,0.00019999,2]
[408195486,1773209440942,-500.0,0.00019999,2]
[408195487,1773209440951,-507.08615799,0.00019999,2]
[408195488,1773209440960,-261.45915393,0.00019999,2]
[408195489,1773209440969,-500.0,0.00019999,2]
[408195490,1773209440979,-490.0,0.00019999,2]
[408195491,1773209440988,-500.0,0.00019999,2]
[408195492,1773209440997,-500.0,0.00019999,2]
[408195493,1773209441009,-500.0,0.00019999,2]
[408195494,1773209441025,-502.4850874,0.00019999,2]
[408195495,1773209441035,-500.0,0.00019999,2]
[408195496,1773209441044,-500.0,0.00019999,2]
[408195497,1773209441053,-500.0,0.00019999,2]
[408195498,1773209441062,-500.0,0.00019999,2]
[408195499,1773209441071,-500.0,0.00019999,2]
[408195500,1773209441080,-436.3340644,0.00019999,2]
[408195501,1773209441090,-500.0,0.00019999,2]
[408195502,1773209441099,-500.0,0.00019999,2]
[408195503,1773209441108,-500.0,0.00019999,2]
[408195504,1773209441118,-500.0,0.00019999,2]
[408195505,1773209441133,-503.86249418,0.00019999,2]
[408195506,1773209441154,-500.0,0.00019999,2]
[408195507,1773209441164,-500.0,0.00019999,2]
[408195508,1773209441173,-500.0,0.00019999,2]
[408195509,1773209441182,-500.0,0.00019999,2]
[408195510,1773209441191,-261.24779891,0.00019999,2]
[408195511,1773209441200,-183.07713092,0.00019999,2]
[408195512,1773209441209,-500.0,0.00019999,2]
[408195513,1773209441218,-210.19182398,0.00019999,2]
[408195514,1773209441227,-2136.0,0.0002,2]
[408195515,1773209441237,-600484.09707511,0.0002,2]
[408195516,1773209441246,-474.20948844,0.0002,7]
[408195517,1773209441255,-296.75496853,0.0002,2]
[408195518,1773209441264,-3107.56893754,0.0002,2]
[408195519,1773209441273,-1351.23310367,0.0002,2]
[408195520,1773209441282,-152.0,0.0002,2]
[408195521,1773209441291,-19742.04,0.0002,2]
[408195522,1773209441300,-606971.1461436,0.0002,2]
[408195525,1773209442594,-2627.32507552,0.0002,2]
[408195526,1773209442607,-2206.02923407,0.0002,2]
[408195527,1773209442620,-722.8955016,0.0002,2]
[408195533,1773209445548,-127481.68871258,0.0002,2]
[408195534,1773209445724,-3629.98681558,0.0002,2]
[408195535,1773209445736,-1298.97054013,0.0002,2]
[408195538,1773209546071,735.31376526,8.6e-05,2]
[408195539,1773209585054,163.0,0.0001343,2]
[408195540,1773209652001,163.0,0.0001343,2]
[408195544,1773210002923,260.0,0.0001343,2]
[408195545,1773210014970,-161.0,0.0001343,2]
[408195546,1773210022131,150.0,0.000134,2]
[408195547,1773210244424,180.64,0.00012807,2]
[408195548,1773210307227,161.0,0.0001343,2]
[408195549,1773210369337,3087.34692486,0.0002,120]
[408195563,1773210631515,-161.0,0.0001343,2]
[408195566,1773210631526,-228.5240065,0.00014386,2]
[408195568,1773210631535,-300.0,0.00014485,2]
[408195570,1773210631544,-483.23283684,0.00014486,2]
[408195572,1773210631553,-483.23283684,0.00014486,2]
[408195573,1773210631563,-483.23283684,0.00014486,2]
[408195575,1773210631571,-483.23283684,0.00014486,2]
[408195576,1773210631580,-483.23283684,0.00014486,2]
[408195577,1773210631589,-483.23283684,0.00014486,2]
[408195578,1773210631599,-483.23283684,0.00014486,2]
[408195579,1773210631609,-483.23283684,0.00014486,2]
[408195580,1773210631618,-483.23283684,0.00014486,2]
[408195581,1773210631627,-483.23283684,0.00014486,2]
[408195582,1773210631636,-483.23283684,0.00014486,2]
[408195583,1773210631648,-503.26645979,0.000146,2]
[408195584,1773210631657,-501.97456647,0.000146,2]
[408195585,1773210631666,-180.64,0.00014942,2]
[408195586,1773210631675,-150.0,0.00014999,2]
[408195587,1773210631684,-250.0,0.00015,2]
[408195588,1773210631694,-6976.35287118,0.00015,7]
[408195589,1773210631703,-500.0,0.00015,30]
[408195590,1773210631712,-174.39535369,0.00015,30]
[408195591,1773210631721,-339.563129,0.00015,30]
[408195592,1773210631730,-250.73775205,0.00015,30]
[408195593,1773210631739,-58055.6222,0.00015233,2]
[408195594,1773210631749,-58865.12654619,0.00015323,2]
[408195596,1773210631761,-6631.76432218,0.00015323,2]
[408195597,1773210631770,-542.59073283,0.00015332,2]
[408195598,1773210631779,-34567.23365426,0.00015333,2]
[408195599,1773210631788,-500.0,0.00015373,2]
[408195600,1773210631797,-500.0,0.00015373,2]
[408195601,1773210631806,-500.0,0.00015373,2]
[408195602,1773210631815,-500.0,0.00015373,2]
[408195603,1773210631824,-167.23452348,0.00015373,2]
[408195604,1773210631833,-500.0,0.00015373,2]
[408195606,1773210631842,-501.38283497,0.00015373,2]
[408195608,1773210631851,-500.0,0.00015373,2]
[408195610,1773210631860,-500.0,0.00015373,2]
[408195611,1773210631870,-198.0,0.00015699,2]
[408195612,1773210631878,-1034.04,0.00015819,2]
[408195613,1773210631887,-600.0,0.00015825,2]
[408195614,1773210631897,-175.64517432,0.00015858,2]
[408195615,1773210631909,-420.0,0.00015862,2]
[408195616,1773210631919,-1512.0,0.00015916,2]
[408195617,1773210631928,-250.0,0.00015934,2]
[408195618,1773210631938,-4198.74290208,0.00015934,2]
[408195619,1773210631949,-500.0,0.00015973,2]
[408195620,1773210631958,-408.4947,0.00015999,2]
[408195621,1773210631969,-32232.3825271,0.00016,2]
[408195622,1773210631981,-2333.32099426,0.00016,2]
[408195623,1773210631992,-250.0,0.00016,2]
[408195630,1773210640024,-42013.03694609,0.00016,2]
[408195631,1773210640032,-1044.04230344,0.0001608,2]
[408195632,1773210640041,-500.0,0.00016098,2]
[408195633,1773210640049,-500.0,0.00016098,2]
[408195634,1773210640057,-500.0,0.00016098,2]
[408195635,1773210640065,-500.0,0.00016098,2]
[408195636,1773210640074,-500.0,0.00016098,2]
[408195637,1773210640082,-500.0,0.00016098,2]
[408195638,1773210640090,-500.0,0.00016098,2]
[408195639,1773210640098,-500.0,0.00016098,2]
[408195640,1773210640106,-500.0,0.00016098,2]
[408195641,1773210640115,-500.0,0.00016098,2]
[408195642,1773210640123,-500.0,0.00016098,2]
[408195643,1773210640132,-500.0,0.00016098,2]
[408195644,1773210640141,-500.0,0.00016098,2]
[408195645,1773210640151,-500.0,0.00016098,2]
[408195646,1773210640160,-500.0,0.00016098,2]
[408195647,1773210640169,-319.6001777,0.00016098,2]
[408195648,1773210640177,-500.0,0.00016098,2]
[408195649,1773210640186,-500.0,0.00016098,2]
[408195650,1773210640195,-500.0,0.00016098,2]
[408195651,1773210640204,-500.0,0.00016098,2]
[408195652,1773210640213,-500.0,0.00016098,2]
[408195653,1773210640223,-500.0,0.00016098,2]
[408195654,1773210640232,-500.0,0.00016098,2]
[408195655,1773210640242,-500.0,0.00016098,2]
[408195656,1773210640252,-500.0,0.00016098,2]
[408195657,1773210640261,-500.0,0.00016098,2]
[408195658,1773210640271,-500.0,0.00016098,2]
[408195659,1773210640280,-159.24449362,0.00016098,2]
[408195660,1773210640290,-500.0,0.00016099,2]
[408195661,1773210640299,-500.0,0.00016099,2]
[408195662,1773210640310,-504.64296701,0.00016099,2]
[408195663,1773210640320,-500.0,0.00016099,2]
[408195664,1773210640330,-586.870057,0.00016099,2]
[408195665,1773210640339,-500.0,0.00016099,2]
[408195666,1773210640349,-500.0,0.00016099,2]
[408195667,1773210640358,-500.0,0.00016099,2]